bitfinex/quotes_SOLUSD_20241008
["timestamp","ask_amount","ask_price","bid_price","bid_amount"]
[1728419421479,0.12549,144.06,144.01,17.3597]
[1728419421672,6.9421,144.05,144.01,24.3033]
[1728419422600,16.2857,144.07,144.01,17.3597]
[1728419422884,6.9401,144.09,144.06,6.9414]
[1728419423068,6.9406,144.08,144.04,6.9424]
[1728419423388,6.9406,144.08,144.05,24.2966]
[1728419423586,6.9401,144.09,144.05,24.2966]
[1728419424487,15.9843,144.11,144.05,24.2966]
[1728419424878,6.9403,144.09,144.05,24.2966]
[1728419425084,22.9236,144.11,144.07,6.941]
[1728419425390,22.9236,144.11,144.05,17.3547]
[1728419425391,15.9843,144.11,144.05,17.3547]
[1728419425566,6.9401,144.09,144.05,24.2965]
[1728419425966,15.9843,144.11,144.05,17.3547]
[1728419426163,6.9399,144.1,144.06,6.9414]
[1728419427187,6.9401,144.09,144.05,24.2965]
[1728419429327,7.06509,144.1,144.06,6.9414]
[1728419430293,6.9402,144.09,144.05,24.2965]
[1728419432794,15.9843,144.11,144.07,17.3524]
[1728419433003,15.9843,144.11,144.04,12.97664731]
[1728419433004,7.06549,144.1,144.06,6.9414]
[1728419435783,6.94,144.1,144.06,6.9414]
[1728419438791,15.9843,144.11,144.07,6.941]
[1728419438995,22.9235,144.11,144.07,6.941]
[1728419440711,6.9396,144.1,144.07,6.941]
[1728419443687,31.169296,144.14,144.04,12.97664731]
[1728419443898,6.9381,144.13,144.1,6.9395]
[1728419444104,7.255896,144.14,144.08,17.3514]
[1728419444335,6.9391,144.11,144.08,24.2918]
[1728419444804,6.9388,144.12,144.08,24.2918]
[1728419446909,6.9388,144.12,144.09,6.94]
[1728419448302,6.9383,144.13,144.09,8.32790093]
[1728419448490,6.9383,144.13,144.09,6.94]
[1728419449694,6.9389,144.12,144.08,24.2919]
[1728419450406,6.9389,144.12,144.09,6.94]
[1728419450894,7.255896,144.14,144.09,6.94]
[1728419451095,6.9385,144.13,144.09,6.94]
[1728419462600,7.255896,144.14,144.11,6.9391]
[1728419463809,14.193596,144.14,144.11,6.9391]
[1728419466419,7.255896,144.14,144.1,17.3488]
[1728419466732,0.12549,144.13,144.08,6.9404]
[1728419467225,6.9388,144.12,144.08,6.9404]
[1728419467426,0.12549,144.13,144.07,17.3515]
[1728419467614,7.06389,144.13,144.09,6.9399]
[1728419474438,14.193696,144.14,144.1,8.32736895]
[1728419475128,14.193696,144.14,144.1,6.9395]
[1728419477131,7.255896,144.14,144.08,17.3503]
[1728419477434,6.9387,144.12,144.08,24.2907]
[1728419478943,6.9387,144.12,144.09,6.9399]
[1728419479234,7.255896,144.14,144.09,6.9399]
[1728419479433,6.9383,144.13,144.09,6.9399]
[1728419484818,6.9383,144.13,144.08,18.73817824]
[1728419484819,14.319186,144.14,144.1,8.32738997]
[1728419485013,14.193696,144.14,144.1,1.38778997]
[1728419485244,14.193696,144.14,144.11,6.939]
[1728419486130,14.193696,144.14,144.11,8.32667636]
[1728419486328,7.255896,144.14,144.11,8.32667636]
[1728419486522,7.255896,144.14,144.13,6.9381]
[1728419487120,6.9358,144.18,144.13,6.9381]
[1728419487446,6.9358,144.18,144.14,6.9376]
[1728419487447,7.25263532,144.17,144.14,6.9376]
[1728419487740,6.9358,144.18,144.14,6.9376]
[1728419489939,29.94622565,144.22,144.15,1.38730908]
[1728419490348,23.84532565,144.22,144.15,1.38730908]
[1728419490938,6.9358,144.18,144.14,24.2813]
[1728419491245,41.18022565,144.22,144.12,13.4417]
[1728419491246,6.9367,144.16,144.12,13.4417]
[1728419492520,6.9364,144.17,144.13,6.9381]
[1728419492727,6.9367,144.16,144.12,6.9384]
[1728419497853,6.9367,144.16,144.13,6.9381]
[1728419499853,6.9373,144.15,144.11,24.286]
[1728419500033,6.9373,144.15,144.12,6.9386]
[1728419500233,6.9373,144.15,144.11,24.2858]
[1728419501142,7.06219,144.16,144.12,8.32589716]
[1728419501350,7.06219,144.16,144.12,6.9383]
[1728419503145,6.9367,144.16,144.13,6.9381]
[1728419503548,22.3336,144.17,144.13,6.9381]
[1728419505660,14.18786825,144.2,144.16,6.9364]
[1728419505962,6.9348,144.2,144.16,6.9364]
[1728419506762,15.9772,144.21,144.16,1.38718874]
[1728419506939,22.9116,144.21,144.17,17.3404]
[1728419507658,6.934,144.22,144.18,6.9357]
[1728419509055,6.934,144.22,144.18,8.32273085]
[1728419509564,6.9335,144.23,144.19,6.9351]
[1728419509763,6.9336,144.23,144.19,24.2729]
[1728419510238,15.6877,144.24,144.19,17.3378]
[1728419510560,15.6877,144.24,144.21,6.9342]
[1728419511132,6.9323,144.26,144.22,6.9337]
[1728419511334,6.9312,144.28,144.23,42.37364731]
[1728419511541,0.8575467,144.32,144.28,6.9307]
[1728419511737,7.2463724,144.3,144.28,1.38600954]
[1728419512047,0.8575467,144.32,144.3,6.9299]
[1728419512537,0.8575467,144.32,144.29,6.9303]
[1728419514159,7.7865467,144.32,144.27,17.3281]
[1728419514342,0.8575467,144.32,144.26,6.9317]
[1728419514539,6.9303,144.3,144.25,6.9323]
[1728419515747,0.8575467,144.32,144.25,20.0]
[1728419515953,6.9296,144.31,144.26,6.9317]
[1728419517740,6.9301,144.3,144.26,6.9317]
[1728419518962,6.9301,144.3,144.26,19.90834731]
[1728419519541,6.9301,144.3,144.25,26.9323]
[1728419521460,6.9301,144.3,144.26,12.97664731]
[1728419521641,6.9301,144.3,144.26,21.29469427]
[1728419523163,6.9296,144.31,144.26,21.29469427]
[1728419526548,6.9296,144.31,144.27,6.9313]
[1728419526747,6.9296,144.31,144.28,1.38605367]
[1728419527364,6.9296,144.31,144.27,8.31734756]
[1728419529448,6.93,144.3,144.27,1.38604756]
[1728419531254,6.93,144.3,144.26,37.23754731]
[1728419532766,6.93,144.3,144.27,1.38609245]
[1728419533172,6.93,144.3,144.26,37.23754731]
[1728419534266,6.93,144.3,144.27,1.38609186]
[1728419536168,6.9296,144.31,144.27,1.38609186]
[1728419536372,7.7866467,144.32,144.28,19.90714731]
[1728419536669,7.7866467,144.32,144.29,1.38594886]
[1728419536872,6.9296,144.31,144.28,1.38594862]
[1728419537666,0.8575467,144.32,144.29,1.38599124]
[1728419537970,0.8575467,144.32,144.31,19.90614731]
[1728419538171,0.8575467,144.32,144.31,21.29173395]
[1728419538377,0.8575467,144.32,144.31,19.90614731]
[1728419538679,0.8575467,144.32,144.28,39.02404731]
[1728419538865,0.8575467,144.32,144.31,6.9295]
[1728419539878,0.8575467,144.32,144.31,43.68303131]
[1728419540170,0.8575467,144.32,144.31,45.06846655]
[1728419541347,0.8575467,144.32,144.31,43.68303131]
[1728419542461,0.8575467,144.32,144.31,45.06847499]
[1728419542667,0.8575467,144.32,144.31,43.68303131]
[1728419543077,0.8575467,144.32,144.31,63.68303131]
[1728419545662,0.8575467,144.32,144.31,39.90614731]
[1728419548455,0.8575467,144.32,144.29,33.892]
[1728419548692,0.8575467,144.32,144.29,30.30254731]
[1728419549163,0.8575467,144.32,144.3,6.9299]
[1728419549866,0.8575467,144.32,144.31,6.9295]
[1728419550079,0.8575467,144.32,144.31,21.29166337]
[1728419550279,0.8575467,144.32,144.31,6.9295]
[1728419551865,0.8575467,144.32,144.29,17.3259]
[1728419552174,0.8575467,144.32,144.31,6.9295]
[1728419554673,0.8575467,144.32,144.31,30.706384]
[1728419562489,0.51908783,144.32,144.31,30.706384]
[1728419565888,0.51908783,144.32,144.31,23.776884]
[1728419566090,0.51908783,144.32,144.3,30.706484]
[1728419566474,0.51908783,144.32,144.31,6.9295]
[1728419569078,7.44828783,144.32,144.28,6.9306]
[1728419569387,7.44828783,144.32,144.24,13.0546]
[1728419569388,6.9308,144.29,144.24,13.0546]
[1728419569597,6.9308,144.29,144.24,19.90914731]
[1728419569894,6.931,144.28,144.24,19.90914731]
[1728419572308,6.931,144.28,144.24,6.9325]
[1728419572610,6.9324,144.26,144.21,8.1391702]
[1728419572792,6.9325,144.25,144.21,1.2048702]
[1728419572988,6.9325,144.25,144.2,37.24774731]
[1728419574302,6.9325,144.25,144.21,23.776884]
[1728419574600,6.9339,144.22,144.18,26.9354]
[1728419574804,6.9335,144.23,144.18,26.9354]
[1728419575499,6.9329,144.24,144.2,6.9347]
[1728419575699,6.9325,144.25,144.21,6.9342]
[1728419576007,22.7788,144.26,144.21,6.9342]
[1728419576800,22.7788,144.26,144.22,1.38638245]
[1728419577008,22.7788,144.26,144.19,17.3378]
[1728419577009,15.8469,144.26,144.19,17.3378]
[1728419577297,39.4597,144.26,144.16,17.3416]
[1728419577502,6.9339,144.22,144.17,19.91264731]
[1728419577688,6.9339,144.22,144.18,8.32244939]
[1728419578094,6.9339,144.22,144.18,6.9357]
[1728419578510,6.9334,144.23,144.19,1.38675653]
[1728419580691,6.9352,144.2,144.16,17.3416]
[1728419580885,6.9352,144.2,144.15,6.9371]
[1728419581091,6.9354,144.19,144.14,19.91424731]
[1728419582303,32.6637,144.24,144.13,17.345]
[1728419582304,6.9358,144.18,144.13,24.2831]
[1728419583590,6.9358,144.18,144.14,6.9376]
[1728419584299,6.9354,144.19,144.14,6.9376]
[1728419585294,6.9349,144.2,144.15,6.9371]
[1728419585500,20.12549,144.23,144.17,6.9358]
[1728419585501,6.9338,144.22,144.17,6.9358]
[1728419585801,20.0,144.23,144.15,24.2795]
[1728419585991,6.9353,144.19,144.15,24.2795]
[1728419587003,6.9349,144.2,144.15,24.2795]
[1728419588716,6.9343,144.21,144.16,14.36364857]
[1728419589808,6.9343,144.21,144.16,6.9366]
[1728419590013,6.9343,144.21,144.17,1.38692446]
[1728419590887,6.9334,144.23,144.18,1.38687335]
[1728419591197,6.9334,144.23,144.19,6.9352]
[1728419591397,6.9334,144.23,144.2,1.38672371]
[1728419592807,6.9334,144.23,144.18,6.9356]
[1728419593014,6.934,144.22,144.18,6.9356]
[1728419593608,6.934,144.22,144.17,37.25284731]
[1728419594613,6.934,144.22,144.18,6.9354]
[1728419598803,6.9335,144.23,144.19,1.38674362]
[1728419599423,6.9335,144.23,144.18,6.9354]
[1728419599798,6.9335,144.23,144.19,1.38672144]
[1728419600514,6.9335,144.23,144.18,6.9354]
[1728419601013,22.2637,144.24,144.2,6.9347]
[1728419601213,6.9333,144.23,144.19,6.9351]
[1728419601410,22.2637,144.24,144.2,6.9347]
[1728419603909,6.9338,144.22,144.19,17.338]
[1728419604309,15.3307,144.24,144.19,17.338]
[1728419604509,6.9335,144.23,144.19,24.2732]
[1728419607297,6.934,144.22,144.19,17.338]
[1728419608919,6.934,144.22,144.2,1.38674112]
[1728419609447,22.2637,144.24,144.2,1.38674112]
[1728419609628,22.2637,144.24,144.2,6.9347]
[1728419609824,22.2637,144.24,144.21,1.38659255]
[1728419615631,21.7637,144.24,144.21,1.38659255]
[1728419616215,6.9325,144.25,144.22,1.38657437]
[1728419619511,20.12549,144.27,144.22,1.38657437]
[1728419619732,6.9329,144.24,144.22,1.38657437]
[1728419621339,6.9324,144.25,144.22,1.38657437]
[1728419628133,6.9329,144.24,144.21,6.9343]
[1728419633534,6.9329,144.24,144.2,19.91124731]
[1728419638650,6.9329,144.24,144.21,23.776884]
[1728419641025,22.50486485,144.28,144.22,1.38645211]
[1728419641230,22.1872,144.28,144.24,6.9326]
[1728419641433,6.9314,144.27,144.25,1.38620649]
[1728419641737,6.9314,144.27,144.23,24.2653]
[1728419643249,32.5839,144.28,144.2,17.3366]
[1728419643555,0.12549,144.27,144.19,20.0]
[1728419644534,6.933,144.24,144.2,6.9347]
[1728419645040,6.9334,144.23,144.19,37.3379]
[1728419645236,6.9334,144.23,144.2,23.776884]
[1728419648454,15.2559,144.28,144.23,17.3333]
[1728419648760,6.9327,144.25,144.21,6.9342]
[1728419651462,6.9327,144.25,144.22,1.38647021]
[1728419652566,6.9327,144.25,144.21,6.9342]
[1728419654871,6.9327,144.25,144.22,1.38646846]
[1728419658570,6.9327,144.25,144.21,6.9342]
[1728419664872,32.5835,144.28,144.19,32.97664731]
[1728419664873,6.9336,144.23,144.19,26.935]
[1728419665050,17.3298,144.26,144.19,23.776884]
[1728419665051,6.934,144.22,144.19,23.776884]
[1728419665361,6.9342,144.22,144.18,6.9355]
[1728419668372,6.9342,144.22,144.19,1.38677706]
[1728419668671,0.12549,144.25,144.18,6.9355]
[1728419668857,6.9343,144.21,144.17,37.25204731]
[1728419670761,15.4024,144.23,144.17,37.25204731]
[1728419670967,6.9348,144.2,144.17,37.25204731]
[1728419671480,15.4024,144.23,144.17,30.31604731]
[1728419671776,6.9344,144.21,144.18,8.32248024]
[1728419672157,6.9344,144.21,144.18,6.9357]
[1728419674480,6.9344,144.21,144.17,37.25204731]
[1728419675066,15.4024,144.23,144.14,23.7449]
[1728419675258,6.936,144.18,144.14,24.281]
[1728419675462,6.9362,144.17,144.14,24.281]
[1728419675879,0.12549,144.21,144.11,32.6409]
[1728419675880,6.9367,144.16,144.11,32.6409]
[1728419676178,6.9375,144.15,144.12,1.3872823]
[1728419676379,6.9376,144.15,144.11,24.2862]
[1728419680180,6.9363,144.17,144.13,6.9381]
[1728419680387,6.9363,144.17,144.14,1.38731836]
[1728419681458,15.615,144.19,144.11,17.3471]
[1728419681658,6.9367,144.16,144.12,6.9385]
[1728419686888,6.9364,144.17,144.13,6.9381]
[1728419692382,6.9359,144.18,144.14,6.9374]
[1728419692693,6.9359,144.18,144.14,8.32467612]
[1728419695065,15.615,144.19,144.15,17.343]
[1728419695269,15.615,144.19,144.16,8.32356103]
[1728419695588,22.5502,144.19,144.16,1.38706103]
[1728419698093,15.615,144.19,144.16,6.9367]
[1728419699378,15.615,144.19,144.15,17.343]
[1728419699574,22.5506,144.19,144.15,24.28]
[1728419700195,15.615,144.19,144.15,17.343]
[1728419700389,6.9363,144.17,144.14,6.9374]
[1728419700594,6.9363,144.17,144.13,20.0]
[1728419700776,6.9363,144.17,144.13,26.938]
[1728419702277,6.9359,144.18,144.14,18.73141953]
[1728419702573,22.5504,144.19,144.15,6.9371]
[1728419702773,22.5504,144.19,144.16,1.38715263]
[1728419703991,15.615,144.19,144.14,24.2817]
[1728419705079,6.9362,144.17,144.14,24.2817]
[1728419706598,6.936,144.18,144.14,24.2817]
[1728419707673,15.615,144.19,144.15,1.38720422]
[1728419707878,6.9354,144.19,144.15,8.32390422]
[1728419712197,15.469,144.23,144.15,1.38720422]
[1728419712384,6.935,144.2,144.16,6.9365]
[1728419712787,20.0,144.22,144.14,17.3442]
[1728419712990,6.9357,144.19,144.15,6.9369]
[1728419713408,6.9358,144.18,144.15,6.9369]
[1728419714479,0.12549,144.22,144.14,17.3442]
[1728419714480,6.9362,144.17,144.14,17.3442]
[1728419715010,6.9377,144.14,144.11,17.3467]
[1728419716094,6.9377,144.14,144.1,6.9394]
[1728419719195,6.9414,144.07,144.02,24.3014]
[1728419720787,0.12549,144.1,144.02,24.3014]
[1728419720788,6.9416,144.06,144.02,24.3014]
[1728419722108,6.9411,144.07,144.02,24.3014]
[1728419722801,6.9415,144.06,144.02,24.3014]
[1728419725491,6.9415,144.06,144.02,23.8014]
[1728419732123,6.9411,144.07,144.03,30.719584]
[1728419732493,6.9416,144.06,144.02,24.3014]
[1728419745724,6.9407,144.08,144.03,1.38829569]
[1728419745919,20.0,144.09,144.04,6.9424]
[1728419746097,6.9413,144.07,144.03,30.719684]
[1728419748521,6.9415,144.06,144.03,30.719684]
[1728419748909,6.9412,144.07,144.03,30.719684]
[1728419749114,6.9416,144.06,144.02,24.3013]
[1728419751532,6.9416,144.06,144.03,1.38829045]
[1728419751707,6.9416,144.06,144.02,24.3013]
[1728419753114,6.9416,144.06,144.03,1.38828673]
[1728419753429,6.9416,144.06,144.02,24.3013]
[1728419753731,6.9416,144.06,144.03,1.38828911]
[1728419754029,6.9416,144.06,144.02,24.3013]
[1728419764231,6.9402,144.09,144.05,6.9416]
[1728419764438,6.9402,144.09,144.04,17.3558]
[1728419764439,6.9407,144.08,144.04,24.2982]
[1728419767059,6.9407,144.08,144.05,1.38819725]
[1728419767422,6.9407,144.08,144.05,1.38815556]
[1728419767934,6.9407,144.08,144.05,1.3881604]
[1728419768139,6.9407,144.08,144.04,24.2982]
[1728419768635,6.9407,144.08,144.04,23.2982]
[1728419780357,7.25645964,144.12,144.07,12.97664731]
[1728419780536,22.3695,144.17,144.13,6.938]
[1728419780856,22.3695,144.17,144.12,18.73374409]
[1728419781033,22.3695,144.17,144.09,17.3495]
[1728419781034,15.4332,144.17,144.09,17.3495]
[1728419781237,6.9382,144.13,144.09,17.3495]
[1728419782154,6.9382,144.13,144.09,24.2894]
[1728419782563,6.9382,144.13,144.1,1.38771697]
[1728419782856,6.9377,144.14,144.1,8.32721697]
[1728419784048,6.9389,144.12,144.1,1.38771697]
[1728419785050,6.9389,144.12,144.09,12.97664731]
[1728419785359,6.9389,144.12,144.1,1.38772511]
[1728419789366,6.9389,144.12,144.09,12.97664731]
[1728419790064,6.9389,144.12,144.1,1.3877258]
[1728419790761,6.9389,144.12,144.08,6.9402]
[1728419790968,6.9389,144.12,144.08,19.91684731]
[1728419791263,6.9389,144.12,144.09,1.38772596]
[1728419794566,6.9389,144.12,144.08,19.91684731]
[1728419799673,6.9396,144.1,144.07,30.717784]
[1728419800256,17.3442,144.14,144.07,30.717784]
[1728419800572,6.9397,144.1,144.06,24.2942]
[1728419800779,6.9393,144.11,144.07,21.30556532]
[1728419802951,6.9397,144.1,144.07,12.97664731]
[1728419803152,6.9401,144.09,144.06,17.3529]
[1728419803952,6.9405,144.08,144.05,6.9419]
[1728419804463,6.9405,144.08,144.04,26.06824731]
[1728419806990,17.3466,144.12,144.05,12.97664731]
[1728419807199,6.9397,144.1,144.06,8.32920208]
[1728419807986,6.9397,144.1,144.07,6.941]
[1728419811081,6.9397,144.1,144.05,30.33124731]
[1728419811284,6.9397,144.1,144.06,30.718184]
[1728419812779,6.9397,144.1,144.07,8.32896013]
[1728419813081,6.9397,144.1,144.07,6.941]
[1728419814483,16.3682,144.13,144.07,8.32896055]
[1728419814658,6.9393,144.11,144.07,8.32896055]
[1728419815680,6.9393,144.11,144.07,21.30560786]
[1728419815859,16.3682,144.13,144.08,23.776884]
[1728419816058,23.3065,144.13,144.09,8.32774486]
[1728419817184,23.3065,144.13,144.1,1.38774498]
[1728419818683,23.3065,144.13,144.09,24.2902]
[1728419820587,23.3065,144.13,144.1,1.38768388]
[1728419820786,23.3065,144.13,144.09,24.2902]
[1728419821585,23.3065,144.13,144.1,1.38768457]
[1728419822893,6.9383,144.13,144.1,8.32718457]
[1728419823892,6.9383,144.13,144.1,1.38768457]
[1728419828226,6.9383,144.13,144.09,24.2901]
[1728419829719,6.9373,144.15,144.11,6.9388]
[1728419829923,16.5915,144.17,144.12,1.38746119]
[1728419830225,23.528,144.17,144.13,6.9381]
[1728419830518,23.528,144.17,144.14,1.38735208]
[1728419831396,6.9365,144.17,144.14,1.38735208]
[1728419832005,33.6304,144.21,144.14,1.38735208]
[1728419832220,6.9359,144.18,144.14,8.32485208]
[1728419832822,6.9356,144.19,144.15,6.9371]
[1728419833121,6.9356,144.19,144.16,1.38720179]
[1728419833419,33.6304,144.21,144.16,1.38720179]
[1728419833608,6.9358,144.18,144.14,8.32469346]
[1728419837508,0.12549,144.2,144.11,12.97664731]
[1728419837741,6.937,144.16,144.12,30.715384]
[1728419837918,6.9372,144.15,144.12,30.715384]
[1728419840946,6.9372,144.15,144.11,6.9391]
[1728419841234,6.9377,144.14,144.11,6.9391]
[1728419843145,6.9375,144.15,144.11,6.9391]
[1728419845840,6.9375,144.15,144.08,16.4434]
[1728419845841,6.9396,144.1,144.07,17.3516]
[1728419846032,6.9391,144.12,144.07,24.2924]
[1728419846345,6.9383,144.13,144.09,6.94]
[1728419846759,6.9383,144.13,144.1,1.38775541]
[1728419847650,6.9387,144.12,144.09,6.94]
[1728419848223,6.9387,144.12,144.08,6.9405]
[1728419850548,6.9387,144.12,144.09,1.38778449]
[1728419852748,6.3391,144.16,144.09,1.38778449]
[1728419852942,20.0,144.16,144.1,1.3875944]
[1728419853139,6.9374,144.15,144.11,6.9388]
[1728419853450,6.9374,144.15,144.12,1.38753436]
[1728419853848,6.9369,144.16,144.12,8.32603436]
[1728419854041,6.9369,144.16,144.12,21.30268167]
[1728419854244,6.9369,144.16,144.12,12.97664731]
[1728419854449,6.9377,144.14,144.11,24.2866]
[1728419856549,6.9377,144.14,144.12,1.38750656]
[1728419860752,6.9377,144.14,144.11,37.26324731]
[1728419861855,0.12549,144.16,144.07,6.941]
[1728419862036,6.9396,144.1,144.06,44.2952]
[1728419862959,6.9393,144.11,144.07,6.9409]
[1728419867559,6.9399,144.1,144.06,24.2952]
[1728419868658,6.9399,144.1,144.07,1.38792697]
[1728419869961,6.9399,144.1,144.06,24.2952]
[1728419871163,6.9399,144.1,144.07,1.38791383]
[1728419871361,6.9399,144.1,144.06,24.2952]
[1728419871564,6.9399,144.1,144.07,1.3879127]
[1728419872265,6.9399,144.1,144.06,24.2952]
[1728419872461,6.9399,144.1,144.06,17.3538]
[1728419872667,6.9392,144.11,144.07,8.32879518]
[1728419872871,6.9392,144.11,144.07,19.91754731]
[1728419874669,6.9392,144.11,144.08,1.38784102]
[1728419875766,6.9392,144.11,144.07,19.91754731]
[1728419876270,6.9392,144.11,144.08,1.38784168]
[1728419878173,6.9392,144.11,144.07,19.91754731]
[1728419879066,6.9392,144.11,144.08,1.38784343]
[1728419879255,6.9392,144.11,144.07,19.91754731]
[1728419879449,6.9392,144.11,144.08,1.38784326]
[1728419879651,6.9396,144.1,144.06,37.27164731]
[1728419880679,6.9396,144.1,144.07,1.38793911]
[1728419880871,6.9396,144.1,144.07,8.32883911]
[1728419881176,6.9392,144.11,144.07,8.32883911]
[1728419881762,6.9392,144.11,144.07,6.9409]
[1728419883888,17.3456,144.13,144.06,24.295]
[1728419883889,6.9399,144.1,144.06,24.295]
[1728419889392,15.506,144.12,144.06,24.295]
[1728419889602,6.9401,144.09,144.06,24.295]
[1728419891087,15.506,144.12,144.06,24.295]
[1728419891297,6.9398,144.1,144.06,24.295]
[1728419893076,15.506,144.12,144.05,6.9418]
[1728419893395,17.47329,144.11,144.04,6.9425]
[1728419893596,6.9402,144.09,144.05,21.30654823]
[1728419894195,15.506,144.12,144.05,14.36484823]
[1728419894380,6.9396,144.1,144.06,8.3292307]
[1728419895399,6.9392,144.11,144.07,19.91764731]
[1728419895585,22.4449,144.12,144.08,8.32826382]
[1728419896180,6.9393,144.11,144.07,37.26974731]
[1728419897403,6.9393,144.11,144.08,1.38788525]
[1728419899209,6.9393,144.11,144.07,37.26974731]
[1728419899513,6.9393,144.11,144.08,1.38788605]
[1728419901988,6.9393,144.11,144.07,37.26974731]
[1728419902188,6.9393,144.11,144.08,1.38787769]
[1728419909508,15.506,144.12,144.06,12.97664731]
[1728419909705,6.9401,144.09,144.06,19.91784731]
[1728419912106,6.9401,144.09,144.07,1.38800509]
[1728419913116,6.9397,144.1,144.07,1.38800509]
[1728419913803,6.9395,144.11,144.07,8.32880509]
[1728419914190,6.9395,144.11,144.07,6.9408]
[1728419915711,6.9395,144.11,144.08,1.38788564]
[1728419916012,22.4448,144.12,144.08,8.32818564]
[1728419916200,22.4448,144.12,144.08,1.38788564]
[1728419916511,6.9395,144.11,144.07,24.2929]
[1728419919601,6.9395,144.11,144.08,1.38788686]
[1728419919799,6.9395,144.11,144.07,24.2929]
[1728419925515,6.9395,144.11,144.08,1.38789113]
[1728419925716,22.4447,144.12,144.09,6.94]
[1728419926020,6.9392,144.11,144.08,19.91704731]
[1728419931517,6.9392,144.11,144.07,24.2927]
[1728419932903,6.9392,144.11,144.08,6.9405]
[1728419949641,6.9392,144.11,144.08,8.3283583]
[1728419950236,22.4448,144.12,144.08,6.9405]
[1728419951231,22.4448,144.12,144.08,8.32835746]
[1728419952027,22.4448,144.12,144.08,21.30500477]
[1728419954041,22.4448,144.12,144.08,19.91714731]
[1728419955839,22.4448,144.12,144.08,21.30500538]
[1728419956424,22.4448,144.12,144.08,19.91714731]
[1728419958412,22.4448,144.12,144.08,21.30500531]
[1728419960444,22.4448,144.12,144.08,19.91714731]
[1728419961663,22.4448,144.12,144.08,6.9405]
[1728419963135,22.4448,144.12,144.08,8.32835792]
[1728419963654,22.4448,144.12,144.08,6.9405]
[1728419964339,22.4448,144.12,144.08,8.3283578]
[1728419964520,22.4448,144.12,144.08,6.9405]
[1728419965343,22.4448,144.12,144.08,8.32835807]
[1728419966143,22.4448,144.12,144.08,6.9405]
[1728419967846,15.506,144.12,144.08,1.38785814]
[1728419968142,7.25499817,144.16,144.12,6.9383]
[1728419968143,23.5517,144.16,144.12,6.9383]
[1728419968331,23.5517,144.16,144.12,21.30241871]
[1728419968332,6.937,144.16,144.12,21.30241871]
[1728419970122,16.6147,144.19,144.13,17.345]
[1728419970445,6.9359,144.18,144.14,21.3012743]
[1728419970642,6.9352,144.2,144.16,6.9363]
[1728419970846,6.9352,144.2,144.16,8.32347554]
[1728419971729,6.9354,144.19,144.15,24.2793]
[1728419973747,6.9354,144.19,144.15,25.66651239]
[1728419976441,6.9373,144.15,144.11,6.939]
[1728419976743,6.9382,144.13,144.09,30.9427]
[1728419976936,6.9382,144.13,144.09,24.289]
[1728419977550,17.3395,144.18,144.09,17.3493]
[1728419977756,6.9379,144.14,144.1,6.9395]
[1728419980741,17.3395,144.18,144.09,30.32594731]
[1728419980941,6.9373,144.15,144.11,6.9391]
[1728419986756,17.3395,144.18,144.09,30.32594731]
[1728419987052,6.9378,144.14,144.1,6.9395]
[1728419989463,6.9378,144.14,144.1,8.32716246]
[1728419993461,6.9372,144.15,144.11,6.9388]
[1728420000369,0.12549,144.17,144.11,6.9388]
[1728420000554,0.12549,144.17,144.1,8.32708456]
[1728420000555,6.9377,144.14,144.1,8.32708456]
[1728420000758,6.9377,144.14,144.11,6.9391]
[1728420001470,6.9377,144.14,144.09,17.3493]
[1728420001666,6.9377,144.14,144.1,6.9394]
[1728420003360,6.9382,144.13,144.1,6.9394]
[1728420005483,6.9382,144.13,144.1,8.32714759]
[1728420005769,6.9379,144.14,144.1,8.32714759]
[1728420008479,6.9379,144.14,144.11,6.939]
[1728420009675,6.9379,144.14,144.09,17.3493]